bitfinex/quotes_SOLUSD_20260102
["timestamp","ask_amount","ask_price","bid_price","bid_amount"]
[1767363238846,14.26,128.06,128.03,2.89785473]
[1767363239237,14.96396851,128.06,128.03,0.70238842]
[1767363239442,0.70396851,128.06,128.03,0.70238842]
[1767363239837,2.89943482,128.04,128.0,0.70238842]
[1767363240047,0.70396851,128.04,128.0,0.70238842]
[1767363240239,2.89943482,128.04,128.0,0.70238842]
[1767363240548,0.70396851,128.04,128.01,0.70238842]
[1767363241146,2.89943482,128.05,128.01,0.70238842]
[1767363241356,0.70396851,128.05,128.02,0.70238842]
[1767363241586,16.45546631,128.06,128.02,10.70907413]
[1767363241747,17.15943482,128.06,128.02,10.70907413]
[1767363241959,14.96396851,128.06,128.03,0.70238842]
[1767363242530,0.70396851,128.07,128.03,2.89785473]
[1767363243029,0.70396851,128.07,128.03,2.8688798]
[1767363243855,2.89943482,128.07,128.03,10.67950876]
[1767363244062,0.70396851,128.06,128.03,10.67950876]
[1767363244273,2.19546631,128.07,128.03,10.00609527]
[1767363244867,2.89943482,128.08,128.03,10.00609527]
[1767363245036,5.7936358,128.07,128.03,10.00609527]
[1767363245242,2.89943482,128.08,128.04,0.70238842]
[1767363245439,5.7943103,128.07,128.04,0.70238842]
[1767363245659,2.89943482,128.08,128.04,0.70238842]
[1767363245837,5.79429231,128.07,128.04,0.70238842]
[1767363246135,2.89943482,128.08,128.04,0.70238842]
[1767363246534,2.89943482,128.08,128.02,0.70238842]
[1767363246535,2.19546631,128.05,128.02,0.70238842]
[1767363246965,2.89943482,128.06,128.02,0.70238842]
[1767363252284,2.19546631,128.05,128.02,0.70238842]
[1767363252452,2.89943482,128.05,128.02,0.70238842]
[1767363253687,2.89943482,128.04,128.0,0.70238842]
[1767363254157,2.19546631,128.03,128.0,0.70238842]
[1767363255551,2.19546631,128.04,127.96,0.70238842]
[1767363255774,2.89943482,128.02,127.98,0.70238842]
[1767363257375,22.07036746,128.04,127.99,0.70238842]
[1767363257376,2.89943482,128.03,127.99,0.70238842]
[1767363257749,2.19546631,128.02,127.99,0.70238842]
[1767363257951,2.89943482,128.02,127.99,0.70238842]
[1767363258686,2.89943482,128.02,127.98,0.70238842]
[1767363259779,2.19546631,128.02,127.98,0.70238842]
[1767363260088,2.19546631,128.02,127.99,0.70238842]
[1767363260583,3.43122057,128.02,127.99,0.70238842]
[1767363261388,0.70396851,128.03,127.99,0.70238842]
[1767363261606,3.43122057,128.02,127.99,0.70238842]
[1767363261985,4.13518908,128.02,127.99,0.70238842]
[1767363262481,3.43122057,128.01,127.99,0.70238842]
[1767363262993,0.70396851,128.02,127.99,0.70238842]
[1767363263196,11.94607688,128.03,127.99,0.70238842]
[1767363263389,4.13518908,128.03,128.0,0.70238842]
[1767363263901,4.13518908,128.04,128.0,0.70238842]
[1767363264091,4.13518908,128.05,128.01,0.70238842]
[1767363264584,0.70396851,128.05,128.01,0.70238842]
[1767363264791,4.13518908,128.05,128.01,0.70238842]
[1767363265358,0.70396851,128.05,128.01,0.70238842]
[1767363265563,4.13518908,128.05,128.01,0.70238842]
[1767363266788,0.70396851,128.05,128.01,0.70238842]
[1767363266992,4.13518908,128.05,128.01,0.70238842]
[1767363267794,4.10723885,128.04,128.0,4.10462508]
[1767363268092,4.10723885,128.04,128.01,0.67340451]
[1767363273000,0.67601828,128.04,128.01,0.67340451]
[1767363273201,4.10723885,128.04,128.01,0.67340451]
[1767363273400,4.10723885,128.05,128.01,0.67340451]
[1767363274794,0.67601828,128.05,128.01,0.67340451]
[1767363274995,4.10723885,128.05,128.01,0.67340451]
[1767363276098,18.36723885,128.07,128.02,3.43122057]
[1767363276281,5.79491127,128.06,128.03,0.67340451]
[1767363276478,3.43122057,128.06,128.03,0.67340451]
[1767363276878,4.10723885,128.06,128.03,0.67340451]
[1767363279277,0.67601828,128.06,128.03,0.67340451]
[1767363279478,4.10723885,128.06,128.03,0.67340451]
[1767363279802,0.67601828,128.06,128.03,0.67340451]
[1767363280005,4.10723885,128.06,128.03,0.67340451]
[1767363280804,0.67601828,128.06,128.03,0.67340451]
[1767363280980,4.10723885,128.06,128.03,0.67340451]
[1767363282109,0.67601828,128.06,128.03,0.67340451]
[1767363282318,4.10723885,128.06,128.03,0.67340451]
[1767363282481,3.43122057,128.05,128.03,0.67340451]
[1767363284311,0.67601828,128.06,128.03,0.67340451]
[1767363284497,3.43122057,128.05,128.03,0.67340451]
[1767363286301,0.67601828,128.06,128.03,0.67340451]
[1767363286486,4.10723885,128.06,128.03,0.67340451]
[1767363287688,3.43122057,128.06,128.03,0.67340451]
[1767363287883,4.10723885,128.06,128.03,0.67340451]
[1767363288110,0.67601828,128.06,128.03,0.67340451]
[1767363288909,4.10723885,128.06,128.03,0.67340451]
[1767363289916,0.67601828,128.06,128.03,0.67340451]
[1767363290211,4.10723885,128.06,128.03,0.67340451]
[1767363290905,3.43122057,128.05,128.03,0.67340451]
[1767363293011,0.67601828,128.06,128.03,0.67340451]
[1767363293214,3.43122057,128.05,128.03,0.67340451]
[1767363293816,0.67601828,128.06,128.03,0.67340451]
[1767363293998,3.43122057,128.05,128.03,0.67340451]
[1767363294709,4.10723885,128.06,128.03,0.67340451]
[1767363295406,3.43122057,128.05,128.03,0.67340451]
[1767363298115,0.67601828,128.06,128.03,0.67340451]
[1767363298413,3.43122057,128.05,128.03,0.67340451]
[1767363298612,0.67601828,128.06,128.03,0.67340451]
[1767363298815,4.10723885,128.06,128.03,0.67340451]
[1767363300518,3.43122057,128.05,128.03,0.67340451]
[1767363301914,0.65933814,128.03,128.0,0.66775009]
[1767363302101,0.65933814,128.05,128.0,0.66775009]
[1767363302415,4.09055871,128.03,128.0,0.66775009]
[1767363302592,3.43122057,128.02,128.0,0.66775009]
[1767363303605,0.65933814,128.04,128.0,0.66775009]
[1767363303794,3.43122057,128.03,128.0,0.66775009]
[1767363303996,4.09055871,128.03,128.0,0.66775009]
[1767363304199,3.43122057,128.02,128.0,0.66775009]
[1767363304704,0.65933814,128.03,128.0,0.66775009]
[1767363304905,3.43122057,128.02,128.0,0.66775009]
[1767363305318,4.09055871,128.02,127.99,0.66775009]
[1767363306005,0.65933814,128.02,127.99,0.66775009]
[1767363306395,5.79781054,128.01,127.98,7.81358838]
[1767363306643,5.79781054,128.0,127.98,7.81358838]
[1767363306929,4.09055871,128.02,127.98,7.81358838]
[1767363308208,0.65933814,128.02,127.98,7.81358838]
[1767363308412,4.09055871,128.02,127.99,0.66775009]
[1767363308823,0.65933814,128.02,127.99,0.66775009]
[1767363309225,4.09055871,128.02,127.99,0.66775009]
[1767363310026,0.65933814,128.02,127.99,0.66775009]
[1767363310204,0.65933814,128.02,127.99,8.48084712]
[1767363310399,4.09055871,128.02,127.99,0.66775009]
[1767363311139,4.09055871,128.02,127.99,8.48084443]
[1767363311311,22.06971625,128.05,127.99,8.48084443]
[1767363311312,0.65933814,128.04,128.0,0.66775009]
[1767363311507,4.09055871,128.04,128.0,0.66775009]
[1767363311822,3.43122057,128.04,128.0,0.66775009]
[1767363312030,4.09055871,128.04,128.0,0.66775009]
[1767363312414,0.65933814,128.04,128.0,0.66775009]
[1767363313206,0.65933814,128.04,128.02,0.66775009]
[1767363316108,3.43122057,128.05,128.02,0.66775009]
[1767363316428,0.65933814,128.05,128.02,0.66775009]
[1767363316731,4.09055871,128.05,128.02,0.66775009]
[1767363318633,0.65933814,128.05,128.02,0.66775009]
[1767363318929,0.65933814,128.02,127.95,0.66775009]
[1767363319128,4.09055871,128.01,127.96,0.66775009]
[1767363319837,4.09055871,128.01,127.96,7.81494216]
[1767363320030,4.09055871,128.01,127.97,0.66775009]
[1767363320611,2.85588445,128.01,127.97,0.66775009]
[1767363321234,2.85588445,128.01,127.97,8.48202606]
[1767363323134,0.65933814,128.01,127.97,0.66775009]
[1767363323335,2.85588445,128.01,127.97,0.66775009]
[1767363323826,0.65933814,128.01,127.97,0.66775009]
[1767363324027,2.85588445,128.01,127.97,0.66775009]
[1767363325228,2.85588445,128.01,127.98,0.66775009]
[1767363326332,2.19654631,128.0,127.98,0.66775009]
[1767363329837,0.65933814,128.01,127.98,0.66775009]
[1767363330030,2.85588445,128.01,127.98,0.66775009]
[1767363330234,2.19654631,128.01,127.98,0.66775009]
[1767363330422,0.6545809,128.0,127.98,0.66775009]
[1767363330825,0.6545809,128.02,127.98,0.66775009]
[1767363331024,2.85112721,128.01,127.98,0.66775009]
[1767363332937,2.19654631,128.0,127.98,0.66775009]
[1767363333341,2.19654631,128.0,127.67,56.5332267]
[1767363333342,0.6545809,127.97,127.92,14.26]
[1767363333519,2.85112721,127.98,127.93,0.68611307]
[1767363333837,2.85112721,127.98,127.95,0.68611307]
[1767363335621,2.85112721,127.97,127.94,0.68611307]
[1767363335940,2.85112721,127.97,127.94,14.94611307]
[1767363336940,0.6545809,127.97,127.94,14.94611307]
[1767363337248,2.19654631,127.96,127.94,0.68611307]
[1767363337416,0.6545809,127.96,127.91,7.8179496]
[1767363337622,2.85112721,127.96,127.92,0.68611307]
[1767363337820,2.85112721,127.96,127.93,14.94611307]
[1767363339726,0.6545809,127.96,127.93,14.94611307]
[1767363340535,0.6545809,127.97,127.94,0.68611307]
[1767363340927,0.6545809,127.98,127.94,0.68611307]
[1767363342457,7.81278941,128.0,127.96,0.68611307]
[1767363342458,10.66391662,128.0,127.96,0.68611307]
[1767363342631,2.85112721,128.0,127.96,14.94611307]
[1767363343628,2.85112721,128.0,127.97,14.26]
[1767363345546,0.6545809,128.0,127.97,14.26]
[1767363345718,0.6545809,127.99,127.97,14.26]
[1767363348141,2.19654631,128.03,127.98,0.68611307]
[1767363348322,0.6545809,128.02,127.98,0.68611307]
[1767363348524,0.6545809,128.02,127.99,14.94611307]
[1767363352850,0.6545809,128.02,127.99,22.75919476]
[1767363353048,2.19654631,128.04,128.0,0.68611307]
[1767363353347,0.6545809,128.03,128.0,0.68611307]
[1767363358542,2.85112721,128.03,128.0,0.68611307]
[1767363359041,0.6545809,128.03,128.0,0.68611307]
[1767363359340,2.85112721,128.03,128.0,0.68611307]
[1767363360357,0.6545809,128.03,128.0,0.68611307]
[1767363360562,2.85112721,128.03,128.0,0.68611307]
[1767363361670,2.85112721,128.03,128.0,14.94611307]
[1767363361858,0.6545809,128.03,128.0,14.94611307]
[1767363362065,2.85112721,128.03,128.0,14.94611307]
[1767363362243,0.6545809,128.03,128.0,14.94611307]
[1767363362438,10.69208594,128.05,128.01,0.70517823]
[1767363362647,2.8824278,128.04,128.01,0.70517823]
[1767363362847,0.68588149,128.03,127.99,0.70517823]
[1767363363548,2.8824278,128.03,127.99,0.70517823]
[1767363363972,0.68588149,128.03,127.99,0.70517823]
[1767363364266,2.8824278,128.03,127.99,0.70517823]
[1767363365867,0.68588149,128.03,128.0,0.70517823]
[1767363367471,2.8824278,128.04,128.0,0.70517823]
[1767363367667,10.69259042,128.04,128.0,0.70517823]
[1767363367869,0.68588149,128.03,127.99,0.70517823]
[1767363368053,2.8824278,128.03,127.99,0.70517823]
[1767363368861,0.68588149,128.03,127.99,0.70517823]
[1767363369069,2.8824278,128.03,127.99,0.70517823]
[1767363369271,0.68588149,128.03,127.99,0.70517823]
[1767363369574,2.8824278,128.03,127.99,0.70517823]
[1767363370045,2.8824278,128.04,127.99,0.70517823]
[1767363370457,0.68588149,128.03,127.99,0.70517823]
[1767363370663,2.8824278,128.03,127.99,0.70517823]
[1767363371778,0.68588149,128.03,127.99,0.70517823]
[1767363371951,2.8824278,128.03,127.99,0.70517823]
[1767363372779,0.68588149,128.03,127.99,7.81304329]
[1767363372974,2.8824278,128.03,128.0,0.70517823]
[1767363374279,0.68588149,128.01,127.98,8.51865787]
[1767363374574,2.19654631,128.02,127.99,0.70517823]
[1767363374776,2.8824278,128.03,127.99,0.70517823]
[1767363375069,2.19654631,128.03,128.0,0.70517823]
[1767363375650,2.8824278,128.04,128.0,0.70517823]
[1767363376077,2.19654631,128.03,128.0,0.70517823]
[1767363378259,2.8824278,128.04,128.0,0.70517823]
[1767363380382,2.19654631,128.03,128.0,0.70517823]
[1767363382556,3.43063057,128.03,128.0,0.70517823]
[1767363384279,0.68588149,128.04,128.0,0.70517823]
[1767363384481,4.11651206,128.04,128.0,0.70517823]
[1767363384686,4.11651206,128.04,128.01,0.70517823]
[1767363386979,0.66845858,128.05,128.01,0.70517823]
[1767363387183,4.09908915,128.05,128.01,0.70517823]
[1767363387566,0.66845858,128.05,128.01,0.70517823]
[1767363387768,0.66845858,128.04,128.01,0.70517823]
[1767363390206,4.09908915,128.04,128.01,0.70517823]
[1767363390370,4.09908915,128.04,127.97,0.65886341]
[1767363390371,0.66845858,128.01,127.97,0.65886341]
[1767363390565,3.43063057,127.98,127.95,22.07515617]
[1767363391279,3.43063057,127.99,127.95,22.07515617]
[1767363392489,3.43063057,127.98,127.95,22.07515617]
[1767363392793,3.43063057,127.98,127.96,0.65886341]
[1767363392960,0.66845858,127.99,127.96,0.65886341]
[1767363393162,3.43063057,127.98,127.96,0.65886341]
[1767363394900,4.09908915,127.99,127.96,0.65886341]
[1767363396786,0.66845858,127.99,127.96,0.65886341]
[1767363396994,4.09908915,127.99,127.96,0.65886341]
[1767363397394,4.09908915,127.98,127.95,14.91886341]
[1767363398398,4.09908915,127.98,127.96,0.65886341]
[1767363399366,3.43063057,127.97,127.95,14.26]
[1767363399565,0.66845858,127.96,127.94,0.65886341]
[1767363399766,3.43063057,127.97,127.94,0.65886341]
[1767363400069,4.09908915,127.97,127.94,0.65886341]
[1767363402988,3.43063057,127.96,127.94,0.65886341]
[1767363403178,4.09908915,127.96,127.93,0.65886341]
[1767363403570,19.5332172,127.99,127.93,0.65886341]
[1767363403571,3.43063057,127.95,127.93,0.65886341]
[1767363403897,4.09908915,127.95,127.93,0.65886341]
[1767363405991,4.09908915,127.95,127.91,22.07788375]
[1767363406201,4.09908915,127.95,127.92,0.65886341]
[1767363407298,3.43063057,127.94,127.92,0.65886341]
[1767363407786,4.09908915,127.95,127.92,0.65886341]
[1767363408683,4.09908915,127.94,127.92,0.65886341]
[1767363408878,0.66845858,127.96,127.92,0.65886341]
[1767363409078,4.09908915,127.95,127.92,0.65886341]
[1767363410298,3.43063057,127.97,127.92,4.08949398]
[1767363410495,4.09908915,127.97,127.93,0.65886341]
[1767363410892,0.66845858,127.96,127.93,0.65886341]
[1767363411806,4.09908915,127.96,127.93,0.65886341]
[1767363414805,3.43063057,127.96,127.92,7.8173574]
[1767363415011,0.66845858,127.94,127.91,22.73658217]
[1767363415705,0.66845858,127.94,127.91,22.07771876]
[1767363415903,0.66845858,127.94,127.92,0.65886341]
[1767363416496,0.63845858,127.94,127.92,0.65886341]
[1767363416891,3.43063057,127.95,127.92,0.65886341]
[1767363417698,7.81501603,127.96,127.92,0.65886341]
[1767363417898,3.43063057,127.95,127.92,0.65886341]
[1767363418404,3.43063057,127.94,127.92,0.65886341]
[1767363418788,0.67241541,127.95,127.92,0.65886341]
[1767363419214,4.10304598,127.95,127.92,0.65886341]
[1767363420419,0.67241541,127.95,127.92,0.65886341]
[1767363420621,4.10304598,127.95,127.92,0.65886341]
[1767363422611,0.67241541,127.95,127.92,0.65886341]
[1767363422822,4.10304598,127.95,127.92,0.65886341]
[1767363426694,0.67241541,127.95,127.92,0.65886341]
[1767363426896,4.10304598,127.95,127.92,0.65886341]
[1767363428722,0.67241541,127.94,127.92,0.65886341]
[1767363428907,4.10304598,127.95,127.92,0.65886341]
[1767363430437,7.81571541,127.95,127.9,0.82462239]
[1767363430601,3.43063057,127.93,127.9,0.82462239]
[1767363430930,3.43063057,127.93,127.91,0.72462239]
[1767363432018,4.10304598,127.93,127.91,0.72462239]
[1767363433731,0.67241541,127.91,127.9,0.1]
[1767363433926,4.10304598,127.91,127.9,0.1]
[1767363434126,0.67241541,127.91,127.9,0.1]
[1767363435330,3.43063057,127.92,127.9,0.1]
[1767363435635,4.10304598,127.92,127.9,0.1]
[1767363435929,19.53921911,127.95,127.9,0.1]
[1767363435930,4.10304598,127.91,127.9,0.1]
[1767363436144,0.67241541,127.9,127.88,14.38]
[1767363436312,0.67241541,127.9,127.88,15.10462239]
[1767363436827,3.43063057,127.91,127.88,15.10462239]
[1767363437023,0.67241541,127.91,127.88,15.10462239]
[1767363437226,0.67241541,127.91,127.89,0.72462239]
[1767363440127,0.67241541,127.9,127.88,0.1]
[1767363440307,0.67241541,127.89,127.88,0.1]
[1767363440932,3.43063057,127.89,127.86,20.12091189]
[1767363441113,7.81815434,127.91,127.86,20.12091189]
[1767363441114,3.43063057,127.88,127.86,18.80513341]
[1767363442629,2.2010417,127.88,127.86,18.80513341]
[1767363443112,2.2010417,127.87,127.86,18.80513341]
[1767363443316,27.36737063,127.89,127.83,0.82462239]
[1767363443521,2.2010417,127.86,127.83,0.82462239]
[1767363444129,2.2010417,127.85,127.83,0.1]
[1767363444331,2.2010417,127.84,127.8,0.72462239]
[1767363444637,2.2010417,127.84,127.81,0.72462239]
[1767363445234,2.2010417,127.86,127.81,0.72462239]
[1767363445415,2.2010417,127.84,127.81,0.72462239]
[1767363445911,2.2010417,127.86,127.81,0.72462239]
[1767363446113,2.2010417,127.86,127.82,0.67617232]
[1767363446320,7.82001104,127.88,127.82,0.67617232]
[1767363446535,2.2010417,127.86,127.82,0.67617232]
[1767363446734,2.2010417,127.86,127.83,0.67617232]
[1767363447039,2.2010417,127.84,127.8,0.67617232]
[1767363447221,2.2010417,127.84,127.81,0.67617232]
[1767363448234,10.02472129,127.82,127.75,8.50381581]
[1767363448433,7.82121208,127.86,127.79,2.2010417]
[1767363448626,2.2010417,127.84,127.81,0.67617232]
[1767363448936,2.2010417,127.85,127.81,2.87721402]
[1767363449838,2.2010417,127.85,127.81,0.67617232]
[1767363450241,10.02210565,127.86,127.79,24.30613357]
[1767363450540,2.2010417,127.83,127.8,0.67617232]
[1767363451446,2.2010417,127.81,127.78,0.67617232]
[1767363452228,2.2010417,127.81,127.77,2.2010417]
[1767363452432,2.2010417,127.81,127.77,2.87721402]
[1767363453028,2.2010417,127.82,127.77,2.87721402]
[1767363453545,2.2010417,127.82,127.77,10.70377617]
[1767363453729,2.2010417,127.82,127.77,2.87721402]
[1767363454923,2.2010417,127.81,127.77,10.70373299]
[1767363455145,7.82673442,127.91,127.81,0.67617232]
[1767363455436,2.2010417,127.86,127.82,2.87721402]
[1767363455741,10.02223829,127.86,127.82,0.67617232]
[1767363456129,7.82119659,127.86,127.82,0.67617232]
[1767363456317,2.2010417,127.85,127.82,0.67617232]
[1767363456515,7.82119659,127.86,127.82,0.67617232]
[1767363456719,2.2010417,127.85,127.82,0.67617232]
[1767363457655,7.82119659,127.86,127.82,0.67617232]
[1767363457821,2.2010417,127.84,127.82,0.67617232]
[1767363458521,7.82119659,127.86,127.82,0.67617232]
[1767363458722,2.2010417,127.85,127.82,0.67617232]
[1767363459047,7.82119659,127.86,127.79,7.82518274]
[1767363459048,2.2010417,127.84,127.79,7.82518274]
[1767363459242,2.2010417,127.84,127.81,0.67617232]
[1767363459942,10.02288296,127.85,127.81,0.67617232]
[1767363460330,7.82184126,127.85,127.81,0.67617232]
[1767363460653,10.02288296,127.85,127.81,2.87721402]
[1767363461433,2.2010417,127.85,127.81,2.87721402]
[1767363463054,10.02272598,127.85,127.81,0.67617232]
[1767363463351,10.02272598,127.85,127.81,2.87721402]
[1767363463948,2.2010417,127.83,127.79,0.67617232]
[1767363464135,7.82168428,127.85,127.79,0.67617232]
[1767363464338,7.82168428,127.85,127.77,0.67617232]
[1767363464339,2.2010417,127.81,127.77,0.67617232]
[1767363464729,14.28,127.84,127.72,19.57310877]
[1767363464730,2.2010417,127.79,127.72,19.57310877]
[1767363465053,7.82472613,127.8,127.75,0.67617232]
[1767363465229,2.2010417,127.79,127.75,0.67617232]
[1767363465757,2.2010417,127.77,127.73,2.2010417]
[1767363466056,2.2010417,127.77,127.7,19.57706585]
[1767363466057,2.2010417,127.74,127.72,0.67617232]
[1767363466231,14.28,127.77,127.69,0.67617232]
[1767363466431,14.28,127.77,127.71,0.67617232]
[1767363466432,2.2010417,127.74,127.71,0.67617232]
[1767363466656,2.2010417,127.77,127.74,0.67617232]
[1767363466980,2.2010417,127.78,127.74,2.2010417]
[1767363467262,2.2010417,127.78,127.75,0.67617232]
[1767363467766,7.82472613,127.8,127.75,0.67617232]
[1767363467943,2.2010417,127.77,127.75,0.67617232]
[1767363469247,2.2010417,127.78,127.75,0.67617232]
[1767363470332,2.2010417,127.77,127.75,0.67617232]
[1767363470633,2.2010417,127.77,127.74,0.67617232]
[1767363472057,7.82600766,127.78,127.72,0.67617232]
[1767363472058,2.2010417,127.75,127.72,0.67617232]
[1767363472248,2.2010417,127.74,127.72,0.67617232]
[1767363472423,2.2010417,127.74,127.71,0.67617232]
[1767363473243,2.2010417,127.72,127.68,0.67617232]
[1767363473444,2.2010417,127.71,127.68,0.67617232]
[1767363474049,2.2010417,127.7,127.68,0.67617232]
[1767363474356,22.10921766,127.73,127.66,0.67617232]
[1767363474662,22.10921766,127.73,127.65,7.83368715]
[1767363474663,0.66455256,127.71,127.65,7.50985947]
[1767363474953,2.2010417,127.69,127.65,7.50985947]
[1767363475128,14.94455256,127.72,127.66,7.83324345]
[1767363475326,7.82717595,127.76,127.68,10.03310675]
[1767363475533,7.82717595,127.76,127.69,7.83127884]
[1767363475741,2.2010417,127.75,127.69,7.83127884]
[1767363475942,0.66455256,127.78,127.72,2.2010417]
[1767363476258,2.2010417,127.77,127.72,2.2010417]
[1767363476445,2.2010417,127.76,127.7,14.3]
[1767363476645,2.2010417,127.76,127.71,2.2010417]
[1767363476848,0.67617232,127.77,127.71,2.2010417]
[1767363476849,2.2010417,127.75,127.72,0.666549]
[1767363477053,0.67617232,127.77,127.72,0.666549]
[1767363477237,2.2010417,127.76,127.72,0.666549]
[1767363477755,10.02863305,127.76,127.72,0.666549]
[1767363478163,10.70378978,127.77,127.73,0.666549]
[1767363478339,2.87721402,127.77,127.73,2.8675907]
[1767363478653,2.2010417,127.77,127.73,2.8675907]
[1767363478844,8.50176119,127.79,127.74,0.666549]
[1767363479028,2.2010417,127.75,127.71,0.666549]
[1767363479233,2.2010417,127.74,127.71,0.666549]
[1767363480250,2.2010417,127.73,127.71,0.666549]
[1767363481557,2.2010417,127.73,127.68,0.666549]
[1767363481769,2.2010417,127.73,127.69,0.666549]
[1767363481935,10.03008844,127.73,127.69,0.666549]
[1767363482456,7.82904674,127.73,127.69,0.666549]
[1767363482758,2.2010417,127.72,127.68,0.666549]
[1767363483560,0.67617232,127.7,127.66,8.49932008]
[1767363483760,2.2010417,127.71,127.67,7.83267516]
[1767363483941,2.2010417,127.7,127.67,0.166549]
[1767363484341,0.69634657,127.71,127.67,0.166549]
[1767363484543,0.69634657,127.78,127.7,2.2010417]
[1767363484756,2.2010417,127.73,127.68,16.5010417]
[1767363484960,2.2010417,127.72,127.67,37.96553372]
[1767363485145,2.2010417,127.72,127.67,18.38379957]
[1767363485344,2.2010417,127.71,127.66,10.03418386]
[1767363485666,0.69634657,127.72,127.66,10.03418386]
[1767363485667,2.89738827,127.72,127.67,22.13262516]
[1767363485840,14.99634657,127.77,127.68,2.2010417]
[1767363486046,2.2010417,127.73,127.69,0.666549]
[1767363486239,2.89738827,127.74,127.7,0.666549]
[1767363487166,2.2010417,127.73,127.7,0.666549]
[1767363487746,8.52352252,127.76,127.7,0.666549]
[1767363487953,8.52352252,127.76,127.71,0.666549]
[1767363488262,2.2010417,127.75,127.72,0.666549]
[1767363488842,2.2010417,127.76,127.72,0.666549]
[1767363489042,2.2010417,127.76,127.73,0.666549]
[1767363491959,8.52300918,127.77,127.73,0.666549]
[1767363492161,2.2010417,127.75,127.73,0.666549]
[1767363494352,0.69634657,127.76,127.73,0.666549]
[1767363494551,2.89738827,127.76,127.73,0.666549]
[1767363494972,0.69634657,127.76,127.73,0.666549]
[1767363495270,2.89738827,127.76,127.73,0.666549]
[1767363495467,2.2010417,127.76,127.73,0.666549]
[1767363495673,2.2010417,127.75,127.73,0.666549]
[1767363495875,2.2010417,127.75,127.72,14.966549]
[1767363496074,0.69634657,127.76,127.72,14.966549]
[1767363496456,2.2010417,127.75,127.72,14.966549]
[1767363496968,0.69634657,127.76,127.73,0.666549]
[1767363497157,19.56427623,127.79,127.73,0.666549]
[1767363497361,2.2010417,127.76,127.73,0.666549]
[1767363497560,2.2010417,127.78,127.74,0.666549]
[1767363497857,2.2010417,127.79,127.76,0.666549]
[1767363498059,2.2010417,127.8,127.76,0.666549]
[1767363498263,2.2010417,127.8,127.76,2.8675907]
[1767363498461,2.2010417,127.8,127.77,0.666549]
[1767363499050,2.2010417,127.78,127.74,14.966549]
[1767363499251,2.2010417,127.77,127.74,14.966549]
[1767363499476,2.2010417,127.77,127.73,8.35013837]
[1767363499659,10.02617596,127.8,127.71,0.666549]
[1767363499660,2.2010417,127.74,127.71,0.666549]
[1767363499854,2.89738827,127.75,127.72,0.666549]
[1767363500055,2.89738827,127.75,127.72,0.63780354]
[1767363500658,2.2010417,127.74,127.72,0.63780354]
[1767363500875,2.2010417,127.74,127.72,0.60734076]
[1767363501280,2.2010417,127.74,127.69,21.7792522]
[1767363501281,2.2010417,127.73,127.69,7.83115188]
[1767363501468,2.2010417,127.73,127.69,22.13115188]
[1767363502380,2.2010417,127.71,127.65,19.58381842]
[1767363502582,3.44806121,127.71,127.67,7.83264707]
[1767363502883,3.44806121,127.74,127.68,0.666549]
[1767363503087,3.44806121,127.71,127.68,0.666549]
[1767363503382,4.14440778,127.72,127.68,0.666549]
[1767363503758,3.44806121,127.71,127.68,0.666549]
[1767363503975,0.69634657,127.72,127.68,0.666549]
[1767363504170,0.69634657,127.72,127.68,14.966549]
[1767363504171,3.44806121,127.71,127.68,14.966549]
[1767363504561,7.82911825,127.73,127.68,14.966549]
[1767363504562,3.44806121,127.7,127.68,14.966549]
[1767363505469,0.69634657,127.71,127.68,14.3]
[1767363505774,3.44806121,127.69,127.67,0.666549]
[1767363506171,0.70447363,127.7,127.67,0.666549]
[1767363506394,3.44806121,127.69,127.66,0.66346837]
[1767363506682,3.44806121,127.67,127.63,0.66346837]
[1767363506881,3.44806121,127.67,127.65,0.66346837]
[1767363507067,0.72009052,127.68,127.65,0.66346837]
[1767363507382,3.44806121,127.68,127.65,8.49738452]
[1767363507582,3.44806121,127.7,127.66,0.66346837]
[1767363507982,0.72009052,127.71,127.66,0.66346837]
[1767363508167,3.44806121,127.69,127.66,0.66346837]
[1767363508665,0.72009052,127.7,127.66,0.66346837]
[1767363508873,4.16815173,127.69,127.66,0.66346837]
[1767363509074,3.44806121,127.68,127.64,0.66346837]
[1767363509382,0.72009052,127.69,127.64,0.66346837]
[1767363509577,3.44806121,127.68,127.64,0.66346837]
[1767363510284,4.16815173,127.69,127.64,0.66346837]
[1767363510584,4.16815173,127.69,127.65,0.66346837]
[1767363511781,0.72009052,127.73,127.66,0.66346837]
[1767363511982,3.44806121,127.69,127.66,0.66346837]
[1767363512190,3.44806121,127.68,127.66,0.66346837]
[1767363512490,9.60978931,127.68,127.66,0.66346837]
[1767363512682,0.72009052,127.69,127.66,0.66346837]
[1767363512882,9.60978931,127.68,127.66,0.66346837]
[1767363513665,9.60978931,127.67,127.64,0.66346837]
[1767363514688,0.72009052,127.68,127.64,0.66346837]
[1767363514892,9.60978931,127.69,127.64,17.44426715]
[1767363515074,9.60978931,127.69,127.65,0.66346837]
[1767363515269,0.72009052,127.7,127.64,0.66346837]
[1767363515681,10.32987983,127.68,127.64,0.66346837]
[1767363515897,0.72009052,127.68,127.64,0.66346837]
[1767363516097,9.60978931,127.67,127.64,0.66346837]